fUSD/lending_fUSD_20260519
["ID","MTS","AMOUNT","RATE_DAILY","PERIOD"]
[422594807,1779135042000,-339.42151133,0.00023514,21]
[422594808,1779135042000,-1312.77,0.0002368,2]
[422594741,1779135042000,-200.0,0.00021253,2]
[422594809,1779135042000,-458.01,0.00023744,2]
[422594812,1779135042000,-168.0,0.00024,2]
[422594781,1779135042000,-8198.96,0.00022,2]
[422594811,1779135042000,-500.0,0.00024,2]
[422594815,1779135042000,-295.0,0.00024,2]
[422594804,1779135042000,-500.0,0.00023443,2]
[422594814,1779135042000,-407.72611124,0.00024,2]
[422594802,1779135042000,-338.0,0.00023,2]
[422594803,1779135042000,-300.0,0.00023399,2]
[422594813,1779135042000,-198.0,0.00024,2]
[422594805,1779135042000,-200.0,0.00023445,2]
[422594780,1779135042000,-3995.27628182,0.00022,4]
[422594810,1779135042000,-200.0,0.00023993,2]
[422594773,1779135042000,-458.01,0.00021918,2]
[422594768,1779135042000,-1312.77,0.0002184,2]
[422594756,1779135042000,-3544.0,0.00021791,2]
[422594754,1779135042000,-150.0,0.00021791,2]
[422594764,1779135042000,-200.0,0.00021801,2]
[422594736,1779135042000,-164.19920998,0.00021,2]
[422594748,1779135042000,-150.0,0.00021465,7]
[422594752,1779135042000,-810.11,0.000216,2]
[422594745,1779135042000,-500.0,0.00021282,2]
[422594740,1779135042000,-1106.99626856,0.00021194,2]
[422594739,1779135042000,-338.0,0.00021,2]
[422594737,1779135042000,-289.0,0.00021,2]
[422594743,1779135042000,-1100.48,0.00021273,2]
[422594744,1779135042000,-500.0,0.00021282,2]
[422594777,1779135042000,-391.0,0.00022,2]
[422594742,1779135042000,-2494.55939289,0.00021253,2]
[422594762,1779135042000,-1354.0,0.00021791,2]
[422594749,1779135042000,-1270.0,0.00021568,2]
[422594760,1779135042000,-625.0,0.00021791,2]
[422594750,1779135042000,-1224.0,0.00021568,2]
[422594775,1779135042000,-161.0,0.00022,2]
[422594787,1779135042000,-5000.0,0.00022009,2]
[422594784,1779135042000,-5000.0,0.00022009,2]
[422594786,1779135042000,-5000.0,0.00022009,2]
[422594785,1779135042000,-5000.0,0.00022009,2]
[422594776,1779135042000,-181.0,0.00022,2]
[422594772,1779135042000,-5000.0,0.00021918,2]
[422594758,1779135042000,-927.0,0.00021791,2]
[422594774,1779135042000,-450.0,0.00022,2]
[422594770,1779135042000,-159.41,0.00021859,2]
[422594779,1779135042000,-338.0,0.00022,2]
[422594765,1779135042000,-2586.85809042,0.00021801,2]
[422594771,1779135042000,-711.0,0.00021865,7]
[422594753,1779135042000,-150.0,0.00021791,2]
[422594857,1779135043000,-1153.83,0.00024999,2]
[422594864,1779135043000,-699.91,0.00024999,2]
[422594847,1779135043000,-699.91,0.00024906,2]
[422594852,1779135043000,-151.0,0.00024997,7]
[422594856,1779135043000,-1153.83,0.00024999,2]
[422594849,1779135043000,-277.0,0.00024932,7]
[422594848,1779135043000,-163.0,0.0002492,3]
[422594850,1779135043000,-2313.0,0.0002496,3]
[422594858,1779135043000,-500.0,0.00024999,2]
[422594859,1779135043000,-500.0,0.00024999,2]
[422594862,1779135043000,-500.0,0.00024999,2]
[422594861,1779135043000,-500.0,0.00024999,2]
[422594851,1779135043000,-420.37187793,0.0002497,2]
[422594865,1779135043000,-699.91,0.00024999,2]
[422594869,1779135043000,-1180.49279251,0.00025,2]
[422594860,1779135043000,-500.0,0.00024999,2]
[422594866,1779135043000,-699.91,0.00024999,2]
[422594868,1779135043000,-794274.01596214,0.00025,2]
[422594867,1779135043000,-56288.56973458,0.00025,7]
[422594870,1779135043000,-277.0,0.00025,7]
[422594872,1779135043000,-208.5339928,0.00025,7]
[422594871,1779135043000,-479.48205172,0.00025,2]
[422594879,1779135043000,-1312.77,0.00025519,7]
[422594873,1779135043000,-208.5339928,0.00025,3]
[422594874,1779135043000,-8198.96,0.0002504,7]
[422594881,1779135043000,-152.0,0.00025541,7]
[422594854,1779135043000,-1153.83,0.00024999,2]
[422594863,1779135043000,-500.0,0.00024999,2]
[422594855,1779135043000,-1153.83,0.00024999,2]
[422594832,1779135043000,-37520.3802461,0.00024594,2]
[422594846,1779135043000,-500.0,0.00024906,2]
[422594875,1779135043000,-76405.0,0.000251,2]
[422594817,1779135043000,-3996.51,0.00024087,2]
[422594826,1779135043000,-401.5,0.00024324,2]
[422594827,1779135043000,-1035.8841143,0.00024397,4]
[422594828,1779135043000,-500.0,0.00024397,2]
[422594818,1779135043000,-1492.45,0.00024174,2]
[422594829,1779135043000,-162.0,0.00024397,2]
[422594821,1779135043000,-150.0,0.00024265,2]
[422594820,1779135043000,-150.0,0.00024265,2]
[422594822,1779135043000,-150.0,0.00024265,2]
[422594824,1779135043000,-1540.0,0.0002432,3]
[422594823,1779135043000,-153.0,0.00024265,2]
[422594825,1779135043000,-1586.0,0.0002432,3]
[422594853,1779135043000,-151.0,0.00024997,7]
[422594833,1779135043000,-4032.8589365,0.00024594,2]
[422594830,1779135043000,-1222.0,0.00024568,2]
[422594839,1779135043000,-330.0,0.00024705,5]
[422594841,1779135043000,-3544.0,0.00024791,2]
[422594837,1779135043000,-151.0,0.00024658,2]
[422594840,1779135043000,-10000.0,0.0002475,2]
[422594843,1779135043000,-625.0,0.00024791,2]
[422594834,1779135043000,-2313.0,0.000246,3]
[422594838,1779135043000,-158.01,0.00024658,2]
[422594842,1779135043000,-927.0,0.00024791,2]
[422594835,1779135043000,-1000.0,0.00024658,2]
[422594836,1779135043000,-209.57,0.00024658,2]
[422594845,1779135043000,-500.0,0.00024906,2]
[422594844,1779135043000,-1219.855,0.00024791,2]
[422594831,1779135043000,-300.0,0.00024593,2]
[422594878,1779135043000,-152.82493512,0.00025233,21]
[422594819,1779135043000,-150.0,0.00024265,2]
[422594877,1779135043000,-2313.0,0.000252,3]
[422594952,1779135043000,-810.11,0.000269,7]
[422594951,1779135043000,-151.0,0.00026897,7]
[422594953,1779135043000,-250.0,0.00027,2]
[422594945,1779135043000,-221.636424,0.0002672,2]
[422594947,1779135043000,-318.0,0.00026808,3]
[422594941,1779135043000,-1586.0,0.0002672,3]
[422594943,1779135043000,-1586.0,0.0002672,3]
[422594959,1779135043000,-1049.35722162,0.00027,2]
[422594961,1779135043000,-530.0,0.00027,2]
[422594970,1779135043000,-2574.681521,0.0002701,2]
[422594965,1779135043000,-164.0,0.00027,7]
[422594963,1779135043000,-2000.0,0.00027,2]
[422594968,1779135043000,-172.0,0.00027,7]
[422594949,1779135043000,-1586.0,0.00026884,3]
[422594972,1779135043000,-2313.0,0.0002708,3]
[422594978,1779135043000,-1153.83,0.00027123,2]
[422594976,1779135043000,-150.0,0.00027123,20]
[422594982,1779135043000,-426.16038289,0.00027123,2]
[422594980,1779135043000,-4251.0,0.00027123,2]
[422594987,1779135043000,-372.0,0.00027123,2]
[422594985,1779135043000,-279.0,0.00027123,2]
[422595003,1779135043000,-1500.0,0.00027241,2]
[422594998,1779135043000,-1500.0,0.00027241,2]
[422594991,1779135043000,-163.0,0.0002716,3]
[422595000,1779135043000,-1500.0,0.00027241,2]
[422594994,1779135043000,-281.0,0.00027185,7]
[422594989,1779135043000,-265.0,0.00027123,2]
[422594876,1779135043000,-498.45747932,0.00025101,2]
[422594974,1779135043000,-1586.0,0.0002708,3]
[422594939,1779135043000,-5530.0,0.000266,5]
[422594996,1779135043000,-1500.0,0.00027241,2]
[422594936,1779135043000,-2313.0,0.00026564,3]
[422594882,1779135043000,-152.0,0.00025541,7]
[422594880,1779135043000,-163.0,0.0002552,3]
[422594887,1779135043000,-152.0,0.00025594,7]
[422594889,1779135043000,-154.06086695,0.000256,30]
[422594886,1779135043000,-458.01,0.00025571,2]
[422594897,1779135043000,-277.0,0.0002589,7]
[422594902,1779135043000,-608.90335722,0.0002599,2]
[422594893,1779135043000,-152.0,0.00025834,3]
[422594937,1779135043000,-163.0,0.00026586,3]
[422594895,1779135043000,-32045.70781256,0.0002589,5]
[422594891,1779135043000,-492.0,0.000257,7]
[422594900,1779135043000,-5530.0,0.000259,3]
[422594910,1779135043000,-550.0,0.00026,2]
[422594904,1779135043000,-4583.43430776,0.00026,2]
[422594884,1779135043000,-2313.0,0.0002556,3]
[422594908,1779135043000,-400.29843382,0.00026,20]
[422594934,1779135043000,-2456.30745708,0.0002652,2]
[422594906,1779135043000,-219.37052768,0.00026,2]
[422594932,1779135043000,-699.91,0.00026504,2]
[422594924,1779135043000,-336.17186286,0.00026353,21]
[422594917,1779135043000,-529.26432074,0.00026182,2]
[422594926,1779135043000,-27861.85259256,0.000264,2]
[422594918,1779135043000,-188.0,0.00026265,2]
[422594930,1779135043000,-500.0,0.00026504,2]
[422594920,1779135043000,-401.5,0.00026296,2]
[422594922,1779135043000,-159.41,0.00026297,2]
[422594914,1779135043000,-2313.0,0.0002616,3]
[422594912,1779135043000,-163.0,0.0002616,3]
[422594928,1779135043000,-500.0,0.00026504,2]
[422595055,1779135044000,-151.0,0.00027397,2]
[422595052,1779135044000,-151.00000004,0.00027397,2]
[422595057,1779135044000,-151.0,0.00027397,2]
[422595047,1779135044000,-151.0,0.00027397,2]
[422595046,1779135044000,-300.0,0.00027397,2]
[422595039,1779135044000,-151.0,0.00027397,2]
[422595041,1779135044000,-151.0,0.00027397,2]
[422595036,1779135044000,-150.0,0.00027397,2]
[422595042,1779135044000,-151.0,0.00027397,2]
[422595044,1779135044000,-526.82,0.00027397,2]
[422595043,1779135044000,-1500.0,0.00027397,2]
[422595053,1779135044000,-151.0,0.00027397,2]
[422595060,1779135044000,-151.0,0.00027397,2]
[422595048,1779135044000,-151.0,0.00027397,2]
[422595056,1779135044000,-151.0,0.00027397,2]
[422595045,1779135044000,-209.57,0.00027397,2]
[422595050,1779135044000,-151.0,0.00027397,2]
[422595051,1779135044000,-151.0,0.00027397,2]
[422595054,1779135044000,-151.0,0.00027397,2]
[422595058,1779135044000,-151.0,0.00027397,2]
[422595061,1779135044000,-279.00399,0.00027397,2]
[422595063,1779135044000,-151.0,0.00027397,2]
[422595059,1779135044000,-151.0,0.00027397,2]
[422595062,1779135044000,-151.0,0.00027397,2]
[422595064,1779135044000,-151.0,0.00027397,2]
[422595040,1779135044000,-151.0,0.00027397,2]
[422595049,1779135044000,-151.0,0.00027397,2]
[422595038,1779135044000,-151.0,0.00027397,2]
[422595032,1779135044000,-500.0,0.00027397,2]
[422595033,1779135044000,-500.0,0.00027397,2]
[422595067,1779135044000,-151.0,0.00027397,2]
[422595005,1779135044000,-1500.0,0.00027241,2]
[422595009,1779135044000,-1500.0,0.00027241,2]
[422595011,1779135044000,-1500.0,0.00027241,2]
[422595013,1779135044000,-1734.927438,0.00027241,2]
[422595012,1779135044000,-1500.0,0.00027241,2]
[422595014,1779135044000,-1010.285927,0.00027241,2]
[422595015,1779135044000,-151.0,0.00027297,7]
[422595016,1779135044000,-810.11,0.000273,7]
[422595018,1779135044000,-899.8524603,0.00027351,2]
[422595007,1779135044000,-1500.0,0.00027241,2]
[422595020,1779135044000,-2313.0,0.0002736,3]
[422595017,1779135044000,-8371.9284531,0.00027351,2]
[422595019,1779135044000,-1312.77,0.00027359,7]
[422595022,1779135044000,-8239.37678057,0.0002739,2]
[422595021,1779135044000,-4170.70656321,0.0002739,2]
[422595025,1779135044000,-954.54454987,0.00027397,2]
[422595023,1779135044000,-610.69672088,0.00027397,2]
[422595026,1779135044000,-455.926806,0.00027397,2]
[422595024,1779135044000,-954.54454988,0.00027397,2]
[422595028,1779135044000,-455.926806,0.00027397,2]
[422595027,1779135044000,-455.926806,0.00027397,2]
[422595030,1779135044000,-500.0,0.00027397,2]
[422595031,1779135044000,-500.0,0.00027397,2]
[422595029,1779135044000,-455.926806,0.00027397,2]
[422595034,1779135044000,-500.0,0.00027397,2]
[422595037,1779135044000,-150.0,0.00027397,2]
[422595035,1779135044000,-428.94130666,0.00027397,2]
[422595068,1779135044000,-151.0,0.00027397,2]
[422595065,1779135044000,-151.0,0.00027397,2]
[422595066,1779135044000,-151.0,0.00027397,2]
[422595102,1779135044000,-151.0,0.00028079,7]
[422595104,1779135044000,-8198.96,0.00028081,7]
[422595101,1779135044000,-151.0,0.00028079,7]
[422595103,1779135044000,-151.0,0.00028079,7]
[422595099,1779135044000,-586.7,0.00028051,30]
[422595105,1779135044000,-325.2,0.000281,7]
[422595108,1779135044000,-908.56951832,0.00028101,10]
[422595107,1779135044000,-900.0,0.00028101,10]
[422595109,1779135044000,-150.0,0.00028144,2]
[422595110,1779135044000,-400.0,0.0002817,2]
[422595111,1779135044000,-197.81098472,0.00028205,2]
[422595112,1779135044000,-401.5,0.00028267,2]
[422595106,1779135044000,-236.91,0.000281,7]
[422595115,1779135044000,-1153.83,0.00028529,2]
[422595113,1779135044000,-437.4,0.00028344,2]
[422595114,1779135044000,-450.0,0.00028344,2]
[422595116,1779135044000,-1153.83,0.00028529,2]
[422595124,1779135044000,-699.93,0.00028529,7]
[422595127,1779135044000,-151.0,0.00028624,7]
[422595126,1779135044000,-590269.54485934,0.00028624,2]
[422595118,1779135044000,-1153.83,0.00028529,2]
[422595125,1779135044000,-492.0,0.000286,7]
[422595119,1779135044000,-1154.04759521,0.00028529,2]
[422595120,1779135044000,-699.91,0.00028529,7]
[422595121,1779135044000,-699.91,0.00028529,7]
[422595123,1779135044000,-699.91,0.00028529,7]
[422595122,1779135044000,-699.91,0.00028529,7]
[422595100,1779135044000,-151.0,0.00028079,7]
[422595098,1779135044000,-187.87,0.00028,2]
[422595117,1779135044000,-1153.83,0.00028529,2]
[422595094,1779135044000,-400.0,0.0002797,2]
[422595096,1779135044000,-208.5339928,0.00028,10]
[422595070,1779135044000,-17556.28,0.00027397,10]
[422595080,1779135044000,-2313.0,0.00027448,3]
[422595069,1779135044000,-151.0,0.00027397,2]
[422595073,1779135044000,-325.2,0.000274,7]
[422595072,1779135044000,-27898.87,0.00027397,10]
[422595078,1779135044000,-5196.25,0.000274,2]
[422595075,1779135044000,-5196.25,0.000274,2]
[422595076,1779135044000,-5196.25,0.000274,2]
[422595074,1779135044000,-236.91,0.000274,7]
[422595079,1779135044000,-5196.25,0.000274,2]
[422595077,1779135044000,-5196.25,0.000274,2]
[422595081,1779135044000,-1586.0,0.00027524,3]
[422595084,1779135044000,-163.0,0.0002768,3]
[422595071,1779135044000,-33478.65,0.00027397,10]
[422595088,1779135044000,-922.0,0.00027791,2]
[422595083,1779135044000,-163.0,0.00027535,3]
[422595085,1779135044000,-1586.0,0.00027768,3]
[422595092,1779135044000,-162.0,0.00027918,3]
[422595086,1779135044000,-1586.0,0.00027779,3]
[422595093,1779135044000,-2313.0,0.00027918,3]
[422595089,1779135044000,-810.11,0.000278,7]
[422595087,1779135044000,-3544.0,0.00027791,2]
[422595090,1779135044000,-500.0,0.000278,7]
[422595082,1779135044000,-2313.0,0.00027524,3]
[422595091,1779135044000,-1586.0,0.00027866,3]
[422595095,1779135044000,-2000.0,0.00028,2]
[422595097,1779135044000,-600.0,0.00028,2]
[422595167,1779135045000,-10733.123834,0.00028754,7]
[422595178,1779135045000,-183.97,0.00028788,30]
[422595164,1779135045000,-287.23,0.00028725,2]
[422595180,1779135045000,-273.56,0.00028788,30]
[422595169,1779135045000,-286.91,0.00028756,7]
[422595161,1779135045000,-273.56,0.00028725,2]
[422595160,1779135045000,-286.91,0.00028725,2]
[422595163,1779135045000,-184.01,0.00028725,2]
[422595166,1779135045000,-1087.11,0.00028725,2]
[422595162,1779135045000,-1087.22,0.00028725,2]
[422595165,1779135045000,-273.02,0.00028725,2]
[422595179,1779135045000,-286.91,0.00028788,30]
[422595159,1779135045000,-183.97,0.00028725,2]
[422595170,1779135045000,-273.56,0.00028756,7]
[422595177,1779135045000,-173.0,0.00028767,14]
[422595172,1779135045000,-184.01,0.00028756,7]
[422595171,1779135045000,-1087.22,0.00028756,7]
[422595175,1779135045000,-1087.11,0.00028756,7]
[422595174,1779135045000,-273.02,0.00028756,7]
[422595173,1779135045000,-287.23,0.00028756,7]
[422595176,1779135045000,-150.0,0.00028767,2]
[422595181,1779135045000,-1087.22,0.00028788,30]
[422595183,1779135045000,-287.23,0.00028788,30]
[422595185,1779135045000,-1087.11,0.00028788,30]
[422595184,1779135045000,-273.02,0.00028788,30]
[422595182,1779135045000,-184.01,0.00028788,30]
[422595186,1779135045000,-325.2,0.000288,7]
[422595168,1779135045000,-183.97,0.00028756,7]
[422595156,1779135045000,-287.23,0.00028693,30]
[422595130,1779135045000,-151.0,0.00028624,7]
[422595157,1779135045000,-273.02,0.00028693,30]
[422595188,1779135045000,-810.11,0.000288,7]
[422595128,1779135045000,-192.970074,0.00028624,7]
[422595129,1779135045000,-151.0,0.00028624,7]
[422595131,1779135045000,-151.0,0.00028624,7]
[422595133,1779135045000,-151.0,0.00028624,7]
[422595136,1779135045000,-273.56,0.0002863,2]
[422595135,1779135045000,-286.91,0.0002863,2]
[422595142,1779135045000,-163.0,0.00028634,3]
[422595132,1779135045000,-151.0,0.00028624,7]
[422595134,1779135045000,-183.97,0.0002863,2]
[422595137,1779135045000,-1087.22,0.0002863,2]
[422595143,1779135045000,-183.97,0.00028661,7]
[422595139,1779135045000,-287.23,0.0002863,2]
[422595158,1779135045000,-1087.11,0.00028693,30]
[422595140,1779135045000,-273.02,0.0002863,2]
[422595141,1779135045000,-1087.11,0.0002863,2]
[422595144,1779135045000,-286.91,0.00028661,7]
[422595153,1779135045000,-273.56,0.00028693,30]
[422595146,1779135045000,-1087.22,0.00028661,7]
[422595148,1779135045000,-287.23,0.00028661,7]
[422595147,1779135045000,-184.01,0.00028661,7]
[422595145,1779135045000,-273.56,0.00028661,7]
[422595154,1779135045000,-1087.22,0.00028693,30]
[422595152,1779135045000,-286.91,0.00028693,30]
[422595150,1779135045000,-1087.11,0.00028661,7]
[422595149,1779135045000,-273.02,0.00028661,7]
[422595151,1779135045000,-183.97,0.00028693,30]
[422595155,1779135045000,-184.01,0.00028693,30]
[422595138,1779135045000,-184.01,0.0002863,2]
[422595192,1779135045000,-1087.22,0.0002882,2]
[422595187,1779135045000,-236.91,0.000288,7]
[422595191,1779135045000,-273.56,0.0002882,2]
[422595227,1779135045000,-183.97,0.00028947,7]
[422595229,1779135045000,-273.56,0.00028947,7]
[422595231,1779135045000,-184.01,0.00028947,7]
[422595230,1779135045000,-1087.22,0.00028947,7]
[422595233,1779135045000,-273.02,0.00028947,7]
[422595232,1779135045000,-287.23,0.00028947,7]
[422595234,1779135045000,-1087.11,0.00028947,7]
[422595235,1779135045000,-1586.0,0.00028954,3]
[422595238,1779135045000,-273.56,0.00028979,30]
[422595248,1779135045000,-160.0,0.00029,30]
[422595249,1779135045000,-183.97,0.0002901,2]
[422595247,1779135045000,-208.5339928,0.00029,30]
[422595239,1779135045000,-1087.22,0.00028979,30]
[422595241,1779135045000,-287.23,0.00028979,30]
[422595242,1779135045000,-273.02,0.00028979,30]
[422595240,1779135045000,-184.01,0.00028979,30]
[422595245,1779135045000,-277.0,0.00028997,14]
[422595237,1779135045000,-286.91,0.00028979,30]
[422595243,1779135045000,-1087.11,0.00028979,30]
[422595244,1779135045000,-2313.0,0.00028992,3]
[422595246,1779135045000,-509.77361391,0.00029,2]
[422595251,1779135045000,-273.56,0.0002901,2]
[422595250,1779135045000,-286.91,0.0002901,2]
[422595253,1779135045000,-184.01,0.0002901,2]
[422595252,1779135045000,-1087.22,0.0002901,2]
[422595254,1779135045000,-287.23,0.0002901,2]
[422595256,1779135045000,-1087.11,0.0002901,2]
[422595228,1779135045000,-286.91,0.00028947,7]
[422595225,1779135045000,-273.02,0.00028915,2]
[422595255,1779135045000,-273.02,0.0002901,2]
[422595226,1779135045000,-1087.11,0.00028915,2]
[422595236,1779135045000,-183.97,0.00028979,30]
[422595257,1779135045000,-183.97,0.00029042,7]
[422595190,1779135045000,-286.91,0.0002882,2]
[422595193,1779135045000,-184.01,0.0002882,2]
[422595196,1779135045000,-1087.11,0.0002882,2]
[422595195,1779135045000,-273.02,0.0002882,2]
[422595198,1779135045000,-286.91,0.00028852,7]
[422595194,1779135045000,-287.23,0.0002882,2]
[422595197,1779135045000,-183.97,0.00028852,7]
[422595209,1779135045000,-1087.11,0.00028852,7]
[422595203,1779135045000,-184.01,0.00028852,7]
[422595199,1779135045000,-273.56,0.00028852,7]
[422595205,1779135045000,-287.23,0.00028852,7]
[422595207,1779135045000,-273.02,0.00028852,7]
[422595189,1779135045000,-183.97,0.0002882,2]
[422595201,1779135045000,-1087.22,0.00028852,7]
[422595211,1779135045000,-183.97,0.00028883,30]
[422595217,1779135045000,-273.02,0.00028883,30]
[422595221,1779135045000,-273.56,0.00028915,2]
[422595222,1779135045000,-1087.22,0.00028915,2]
[422595220,1779135045000,-286.91,0.00028915,2]
[422595223,1779135045000,-184.01,0.00028915,2]
[422595218,1779135045000,-1087.11,0.00028883,30]
[422595224,1779135045000,-287.23,0.00028915,2]
[422595216,1779135045000,-287.23,0.00028883,30]
[422595213,1779135045000,-273.56,0.00028883,30]
[422595215,1779135045000,-184.01,0.00028883,30]
[422595214,1779135045000,-1087.22,0.00028883,30]
[422595212,1779135045000,-286.91,0.00028883,30]
[422595219,1779135045000,-183.97,0.00028915,2]
[422595298,1779135046000,-156.22142969,0.00029178,2]
[422595300,1779135046000,-183.97,0.00029201,2]
[422595299,1779135046000,-1312.77,0.00029199,7]
[422595297,1779135046000,-1087.11,0.00029169,30]
[422595288,1779135046000,-273.02,0.00029137,7]
[422595291,1779135046000,-286.91,0.00029169,30]
[422595294,1779135046000,-184.01,0.00029169,30]
[422595295,1779135046000,-287.23,0.00029169,30]
[422595293,1779135046000,-1087.22,0.00029169,30]
[422595292,1779135046000,-273.56,0.00029169,30]
[422595296,1779135046000,-273.02,0.00029169,30]
[422595311,1779135046000,-1087.31,0.00029232,7]
[422595308,1779135046000,-184.14,0.00029232,7]
[422595301,1779135046000,-286.91,0.00029201,2]
[422595303,1779135046000,-1087.22,0.00029201,2]
[422595304,1779135046000,-184.01,0.00029201,2]
[422595302,1779135046000,-273.56,0.00029201,2]
[422595305,1779135046000,-287.23,0.00029201,2]
[422595290,1779135046000,-183.97,0.00029169,30]
[422595306,1779135046000,-273.02,0.00029201,2]
[422595309,1779135046000,-287.02,0.00029232,7]
[422595307,1779135046000,-1087.11,0.00029201,2]
[422595313,1779135046000,-287.28,0.00029232,7]
[422595315,1779135046000,-1087.17,0.00029232,7]
[422595319,1779135046000,-2313.0,0.00029312,3]
[422595318,1779135046000,-1000.0,0.00029308,7]
[422595323,1779135046000,-1000.0,0.00029355,7]
[422595310,1779135046000,-273.67,0.00029232,7]
[422595289,1779135046000,-1087.11,0.00029137,7]
[422595286,1779135046000,-184.01,0.00029137,7]
[422595284,1779135046000,-273.56,0.00029137,7]
[422595312,1779135046000,-184.18,0.00029232,7]
[422595262,1779135046000,-287.23,0.00029042,7]
[422595261,1779135046000,-184.01,0.00029042,7]
[422595258,1779135046000,-286.91,0.00029042,7]
[422595260,1779135046000,-1087.22,0.00029042,7]
[422595259,1779135046000,-273.56,0.00029042,7]
[422595266,1779135046000,-286.91,0.00029074,30]
[422595265,1779135046000,-183.97,0.00029074,30]
[422595263,1779135046000,-273.02,0.00029042,7]
[422595264,1779135046000,-1087.11,0.00029042,7]
[422595268,1779135046000,-1087.22,0.00029074,30]
[422595269,1779135046000,-184.01,0.00029074,30]
[422595270,1779135046000,-287.23,0.00029074,30]
[422595272,1779135046000,-1087.11,0.00029074,30]
[422595267,1779135046000,-273.56,0.00029074,30]
[422595273,1779135046000,-183.97,0.00029105,2]
[422595274,1779135046000,-286.91,0.00029105,2]
[422595277,1779135046000,-184.01,0.00029105,2]
[422595285,1779135046000,-1087.22,0.00029137,7]
[422595276,1779135046000,-1087.22,0.00029105,2]
[422595280,1779135046000,-1087.11,0.00029105,2]
[422595279,1779135046000,-273.02,0.00029105,2]
[422595278,1779135046000,-287.23,0.00029105,2]
[422595275,1779135046000,-273.56,0.00029105,2]
[422595281,1779135046000,-200.0,0.0002913,20]
[422595283,1779135046000,-286.91,0.00029137,7]
[422595282,1779135046000,-183.97,0.00029137,7]
[422595287,1779135046000,-287.23,0.00029137,7]
[422595271,1779135046000,-273.02,0.00029074,30]
[422595317,1779135046000,-168.15013474,0.00029295,7]
[422595316,1779135046000,-311.66876244,0.00029295,7]
[422595361,1779135046000,-1845.92571603,0.0003,2]
[422595352,1779135046000,-151.0,0.00029973,7]
[422595353,1779135046000,-198.0,0.00029973,7]
[422595357,1779135046000,-12834.66639235,0.0003,10]
[422595351,1779135046000,-151.0,0.00029973,7]
[422595356,1779135046000,-332.24708307,0.0003,5]
[422595354,1779135046000,-26637.43094781,0.0003,7]
[422595355,1779135046000,-10482.55124479,0.0003,5]
[422595363,1779135046000,-200.0,0.0003,2]
[422595364,1779135046000,-200.0,0.0003,2]
[422595366,1779135046000,-162.0,0.0003002,30]
[422595365,1779135046000,-6047.0530947,0.00030004,2]
[422595369,1779135046000,-1000.0,0.00030072,7]
[422595362,1779135046000,-165.54848302,0.0003,2]
[422595367,1779135046000,-162.0,0.0003002,30]
[422595370,1779135046000,-1000.0,0.00030078,7]
[422595371,1779135046000,-1000.0,0.0003008,7]
[422595372,1779135046000,-200.82710935,0.000301,15]
[422595374,1779135046000,-153.0,0.00030115,30]
[422595373,1779135046000,-1000.0,0.00030112,7]